{"text_format":"1","workbook":"xlsx","n_sheets":1,"sheets":["Directory"],"not_rendered":{"charts":0,"images":0,"macros":1,"external_links":0,"defined_names":2,"comments":0,"pivot_tables":0},"unopened":[],"bounds":{"document_bytes":16777216,"sheet_cells":100000,"rows_first":2000,"rows_last":500,"rows_between":2000,"halvings":0,"cell_chars":16384,"cell_head_chars":4096},"cells_cut":0,"cells_raw":0,"read":"whole","date_system":"1900"}

{"sheet":"Directory","index":0,"n_rows":199,"n_cols":11,"rows_kept":199,"cut":false,"hidden":false,"merged":[]}
["Employer","Last Name","First Name","Provider","Enrollment Date","Renewal Date","Status"]
["Skullcandy","Knight","Darren","UHC","2010-05-04",{"$f":"IF(E2=\"\",\"\",E2+365)","v":"2011-05-04"},{"$f":"IF(E2=\"\",\"\",IF((F2-TODAY())<0,\"Expired\",IF((F2-TODAY())<30,\"Renew\",\"Good\")))","v":"Renew"}]
["GBS","King","Tim","BCBS - Individual","2010-01-01",{"$f":"IF(E3=\"\",\"\",E3+365)","v":"2011-01-01"},{"$f":"IF(E3=\"\",\"\",IF((F3-TODAY())<0,\"Expired\",IF((F3-TODAY())<30,\"Renew\",\"Good\")))","v":"Expired"},null,null,null,"Altius - Large"]
["Xactware","Knight","Keisha","BCBS - Large","2011-03-14","2012-03-13","Good",null,null,null,"Altius - Small"]
["GBS","King","Melinda","BCBS - Medium","2010-01-01",{"$f":"IF(E5=\"\",\"\",E5+365)","v":"2011-01-01"},{"$f":"IF(E5=\"\",\"\",IF((F5-TODAY())<0,\"Expired\",IF((F5-TODAY())<30,\"Renew\",\"Good\")))","v":"Expired"},null,null,null,"Altius One"]
[null,null,null,null,null,"","",null,null,null,"BCBS - Individual"]
[null,null,null,null,null,"","",null,null,null,"BCBS - Large"]
[null,null,null,null,null,"","",null,null,null,"BCBS - Medium"]
[null,null,null,null,null,"","",null,null,null,"BCBS - Small"]
[null,null,null,null,null,"","",null,null,null,"SelectHealth - Individual"]
[null,null,null,null,null,"","",null,null,null,"SelectHealth - Large"]
[null,null,null,null,null,"","",null,null,null,"SelectHealth - Small"]
[null,null,null,null,null,"","",null,null,null,"UHC"]
[null,null,null,null,null,"",""]
[null,null,null,null,null,"",""]
[null,null,null,null,null,"",""]
[null,null,null,null,null,"",""]
[null,null,null,null,null,"",""]
[null,null,null,null,null,"",""]
[null,null,null,null,null,"",""]
[null,null,null,null,null,"",""]
[null,null,null,null,null,"",""]
[null,null,null,null,null,"",""]
[null,null,null,null,null,"",""]
[null,null,null,null,null,"",""]
[null,null,null,null,null,"",""]
[null,null,null,null,null,"",""]
[null,null,null,null,null,"",""]
[null,null,null,null,null,"",""]
[null,null,null,null,null,"",""]
[null,null,null,null,null,"",""]
[null,null,null,null,null,"",""]
[null,null,null,null,null,"",""]
[null,null,null,null,null,"",""]
[null,null,null,null,null,"",""]
[null,null,null,null,null,"",""]
[null,null,null,null,null,"",""]
[null,null,null,null,null,"",""]
[null,null,null,null,null,"",""]
[null,null,null,null,null,"",""]
[null,null,null,null,null,"",""]
[null,null,null,null,null,"",""]
[null,null,null,null,null,"",""]
[null,null,null,null,null,"",""]
[null,null,null,null,null,"",""]
[null,null,null,null,null,"",""]
[null,null,null,null,null,"",""]
[null,null,null,null,null,"",""]
[null,null,null,null,null,"",""]
[null,null,null,null,null,"",""]
[null,null,null,null,null,"",""]
[null,null,null,null,null,"",""]
[null,null,null,null,null,"",""]
[null,null,null,null,null,"",""]
[null,null,null,null,null,"",""]
[null,null,null,null,null,"",""]
[null,null,null,null,null,"",""]
[null,null,null,null,null,"",""]
[null,null,null,null,null,"",""]
[null,null,null,null,null,"",""]
[null,null,null,null,null,"",""]
[null,null,null,null,null,"",""]
[null,null,null,null,null,"",""]
[null,null,null,null,null,"",""]
[null,null,null,null,null,"",""]
[null,null,null,null,null,"",""]
[null,null,null,null,null,{"$f":"IF(E67=\"\",\"\",E67+365)","v":""},{"$f":"IF(E67=\"\",\"\",IF((F67-TODAY())<0,\"Expired\",IF((F67-TODAY())<30,\"Renew\",\"Good\")))","v":""}]
[null,null,null,null,null,"",""]
[null,null,null,null,null,"",""]
[null,null,null,null,null,"",""]
[null,null,null,null,null,"",""]
[null,null,null,null,null,"",""]
[null,null,null,null,null,"",""]
[null,null,null,null,null,"",""]
[null,null,null,null,null,"",""]
[null,null,null,null,null,"",""]
[null,null,null,null,null,"",""]
[null,null,null,null,null,"",""]
[null,null,null,null,null,"",""]
[null,null,null,null,null,"",""]
[null,null,null,null,null,"",""]
[null,null,null,null,null,"",""]
[null,null,null,null,null,"",""]
[null,null,null,null,null,"",""]
[null,null,null,null,null,"",""]
[null,null,null,null,null,"",""]
[null,null,null,null,null,"",""]
[null,null,null,null,null,"",""]
[null,null,null,null,null,"",""]
[null,null,null,null,null,"",""]
[null,null,null,null,null,"",""]
[null,null,null,null,null,"",""]
[null,null,null,null,null,"",""]
[null,null,null,null,null,"",""]
[null,null,null,null,null,"",""]
[null,null,null,null,null,"",""]
[null,null,null,null,null,"",""]
[null,null,null,null,null,"",""]
[null,null,null,null,null,"",""]
[null,null,null,null,null,"",""]
[null,null,null,null,null,"",""]
[null,null,null,null,null,"",""]
[null,null,null,null,null,"",""]
[null,null,null,null,null,"",""]
[null,null,null,null,null,"",""]
[null,null,null,null,null,"",""]
[null,null,null,null,null,"",""]
[null,null,null,null,null,"",""]
[null,null,null,null,null,"",""]
[null,null,null,null,null,"",""]
[null,null,null,null,null,"",""]
[null,null,null,null,null,"",""]
[null,null,null,null,null,"",""]
[null,null,null,null,null,"",""]
[null,null,null,null,null,"",""]
[null,null,null,null,null,"",""]
[null,null,null,null,null,"",""]
[null,null,null,null,null,"",""]
[null,null,null,null,null,"",""]
[null,null,null,null,null,"",""]
[null,null,null,null,null,"",""]
[null,null,null,null,null,"",""]
[null,null,null,null,null,"",""]
[null,null,null,null,null,"",""]
[null,null,null,null,null,"",""]
[null,null,null,null,null,"",""]
[null,null,null,null,null,"",""]
[null,null,null,null,null,"",""]
[null,null,null,null,null,"",""]
[null,null,null,null,null,"",""]
[null,null,null,null,null,{"$f":"IF(E131=\"\",\"\",E131+365)","v":""},{"$f":"IF(E131=\"\",\"\",IF((F131-TODAY())<0,\"Expired\",IF((F131-TODAY())<30,\"Renew\",\"Good\")))","v":""}]
[null,null,null,null,null,"",""]
[null,null,null,null,null,"",""]
[null,null,null,null,null,"",""]
[null,null,null,null,null,"",""]
[null,null,null,null,null,"",""]
[null,null,null,null,null,"",""]
[null,null,null,null,null,"",""]
[null,null,null,null,null,"",""]
[null,null,null,null,null,"",""]
[null,null,null,null,null,"",""]
[null,null,null,null,null,"",""]
[null,null,null,null,null,"",""]
[null,null,null,null,null,"",""]
[null,null,null,null,null,"",""]
[null,null,null,null,null,"",""]
[null,null,null,null,null,"",""]
[null,null,null,null,null,"",""]
[null,null,null,null,null,"",""]
[null,null,null,null,null,"",""]
[null,null,null,null,null,"",""]
[null,null,null,null,null,"",""]
[null,null,null,null,null,"",""]
[null,null,null,null,null,"",""]
[null,null,null,null,null,"",""]
[null,null,null,null,null,"",""]
[null,null,null,null,null,"",""]
[null,null,null,null,null,"",""]
[null,null,null,null,null,"",""]
[null,null,null,null,null,"",""]
[null,null,null,null,null,"",""]
[null,null,null,null,null,"",""]
[null,null,null,null,null,"",""]
[null,null,null,null,null,"",""]
[null,null,null,null,null,"",""]
[null,null,null,null,null,"",""]
[null,null,null,null,null,"",""]
[null,null,null,null,null,"",""]
[null,null,null,null,null,"",""]
[null,null,null,null,null,"",""]
[null,null,null,null,null,"",""]
[null,null,null,null,null,"",""]
[null,null,null,null,null,"",""]
[null,null,null,null,null,"",""]
[null,null,null,null,null,"",""]
[null,null,null,null,null,"",""]
[null,null,null,null,null,"",""]
[null,null,null,null,null,"",""]
[null,null,null,null,null,"",""]
[null,null,null,null,null,"",""]
[null,null,null,null,null,"",""]
[null,null,null,null,null,"",""]
[null,null,null,null,null,"",""]
[null,null,null,null,null,"",""]
[null,null,null,null,null,"",""]
[null,null,null,null,null,"",""]
[null,null,null,null,null,"",""]
[null,null,null,null,null,"",""]
[null,null,null,null,null,"",""]
[null,null,null,null,null,"",""]
[null,null,null,null,null,"",""]
[null,null,null,null,null,"",""]
[null,null,null,null,null,"",""]
[null,null,null,null,null,"",""]
[null,null,null,null,null,{"$f":"IF(E195=\"\",\"\",E195+365)","v":""},{"$f":"IF(E195=\"\",\"\",IF((F195-TODAY())<0,\"Expired\",IF((F195-TODAY())<30,\"Renew\",\"Good\")))","v":""}]
[null,null,null,null,null,"",""]
[null,null,null,null,null,"",""]
[null,null,null,null,null,"",""]
[null,null,null,null,null,"",""]